bitfinex/quotes_BTCUSD_20251205
["timestamp","ask_amount","ask_price","bid_price","bid_amount"]
[1764968764287,0.01768,89396.0,89384.0,0.06252299]
[1764968764507,0.22373429,89392.0,89387.0,0.297456]
[1764968764711,0.23492794,89390.0,89389.0,0.06776299]
[1764968764911,0.01118655,89393.0,89389.0,0.07300299]
[1764968764912,0.23492117,89392.0,89389.0,0.07300299]
[1764968765091,0.23491874,89393.0,89392.0,0.06776299]
[1764968765499,0.23491874,89393.0,89392.0,0.07300299]
[1764968767631,0.23691874,89393.0,89392.0,0.07300299]
[1764968768028,0.23591874,89393.0,89392.0,0.07300299]
[1764968768393,0.23591874,89393.0,89392.0,0.07600299]
[1764968768593,0.23491874,89393.0,89392.0,0.07076299]
[1764968768940,0.23491874,89393.0,89392.0,0.07176299]
[1764968769134,0.23653161,89393.0,89392.0,0.06652299]
[1764968770126,0.23653161,89393.0,89392.0,0.06252299]
[1764968770329,0.23653161,89393.0,89392.0,0.06552299]
[1764968770568,0.23653161,89393.0,89392.0,0.06652299]
[1764968773502,0.23653161,89393.0,89392.0,0.07700299]
[1764968776611,0.23491874,89393.0,89392.0,0.07700299]
[1764968776942,0.23491771,89393.0,89392.0,0.07700299]
[1764968777441,0.01118655,89393.0,89392.0,0.07700299]
[1764968778431,0.01118618,89396.0,89393.0,0.06252299]
[1764968778636,0.23491056,89396.0,89395.0,0.06776299]
[1764968779039,0.23491056,89396.0,89395.0,0.07300299]
[1764968779244,0.0111858,89399.0,89396.0,0.06252299]
[1764968779421,0.00101469,89403.0,89401.0,0.06252299]
[1764968779622,0.00101469,89403.0,89402.0,0.06776299]
[1764968779862,0.00101469,89403.0,89402.0,0.29671163]
[1764968780477,0.00101469,89403.0,89402.0,0.31354485]
[1764968781334,0.00101469,89403.0,89402.0,0.31754485]
[1764968781535,0.00101469,89403.0,89402.0,0.09083621]
[1764968781736,0.00101469,89403.0,89402.0,0.08559621]
[1764968781939,0.00101469,89403.0,89402.0,0.09083621]
[1764968782761,0.00101469,89403.0,89402.0,0.31454485]
[1764968782971,0.00101469,89403.0,89402.0,0.31854485]
[1764968783179,0.00101469,89403.0,89402.0,0.31354485]
[1764968783703,0.00101469,89403.0,89402.0,0.31754485]
[1764968783851,0.00101469,89403.0,89402.0,0.09083621]
[1764968784057,0.22472082,89403.0,89402.0,0.08983621]
[1764968784252,0.00101469,89403.0,89402.0,0.31754485]
[1764968784452,0.00101469,89403.0,89402.0,0.31854485]
[1764968787724,0.00101469,89403.0,89402.0,0.64154485]
[1764968787920,0.22365037,89426.0,89424.0,0.06252299]
[1764968788241,0.23483365,89425.0,89423.0,0.06252299]
[1764968788564,0.23549916,89425.0,89424.0,0.01683322]
[1764968788765,0.23549916,89425.0,89424.0,0.02207322]
[1764968789055,0.2356178,89425.0,89424.0,0.08459621]
[1764968790018,0.2356178,89425.0,89424.0,0.09183621]
[1764968790376,0.0119667,89425.0,89424.0,0.09183621]
[1764968790590,0.0119667,89425.0,89424.0,0.31548981]
[1764968790591,0.00078415,89425.0,89424.0,0.31548981]
[1764968792033,0.00078415,89425.0,89424.0,0.31348981]
[1764968792457,0.00078415,89425.0,89424.0,0.31748981]
[1764968792878,0.00078415,89425.0,89424.0,0.31848981]
[1764968794750,0.01117942,89450.0,89448.0,0.06252299]
[1764968794949,0.23476814,89450.0,89449.0,0.07935621]
[1764968795159,0.23476814,89450.0,89449.0,0.08983621]
[1764968796628,0.23676814,89450.0,89449.0,0.08983621]
[1764968797218,0.23476814,89450.0,89449.0,0.08983621]
[1764968797418,0.23676814,89450.0,89449.0,0.08983621]
[1764968797621,0.23676814,89450.0,89449.0,0.08459621]
[1764968800722,0.23676814,89450.0,89449.0,0.08983621]
[1764968800922,0.002,89450.0,89449.0,0.08983621]
[1764968801129,0.22358859,89450.0,89449.0,0.08983621]
[1764968801334,0.22434454,89450.0,89449.0,0.06252299]
[1764968801532,0.22434454,89450.0,89447.0,0.00524]
[1764968801533,0.22359359,89448.0,89447.0,0.06776299]
[1764968801739,0.22520646,89448.0,89447.0,0.06776299]
[1764968802564,0.22520646,89448.0,89447.0,0.06252299]
[1764968803219,0.22520646,89448.0,89447.0,0.06752299]
[1764968803626,0.22520646,89448.0,89447.0,0.06452299]
[1764968803944,0.22520646,89448.0,89447.0,0.002]
[1764968804109,0.22360359,89444.0,89443.0,0.06252299]
[1764968804320,0.22521646,89444.0,89443.0,0.06252299]
[1764968805088,0.0111823,89427.0,89425.0,0.06252299]
[1764968805344,0.2348284,89427.0,89426.0,0.07300299]
[1764968805607,0.2348284,89427.0,89426.0,0.01048]
[1764968806562,0.2348284,89427.0,89426.0,0.00524]
[1764968806769,0.2348284,89427.0,89426.0,0.00824]
[1764968807392,0.2348284,89427.0,89426.0,0.01448]
[1764968810228,0.2762484,89427.0,89426.0,0.004]
[1764968810412,0.2513884,89427.0,89426.0,0.06652299]
[1764968811184,0.2762484,89427.0,89426.0,0.003]
[1764968811541,0.5992484,89427.0,89426.0,0.003]
[1764968811773,0.5992484,89427.0,89409.0,0.06776299]
[1764968811774,0.22368862,89410.0,89409.0,0.06776299]
[1764968812499,0.22369362,89408.0,89407.0,0.00101447]
[1764968812700,0.24025362,89408.0,89407.0,0.00101447]
[1764968812916,0.26511362,89408.0,89407.0,0.00101447]
[1764968813277,0.24137362,89408.0,89407.0,0.00101447]
[1764968813672,0.28279362,89408.0,89407.0,0.00101447]
[1764968814727,0.25793362,89408.0,89407.0,0.00101447]
[1764968814929,0.28279362,89408.0,89407.0,0.00101447]
[1764968815531,0.60579362,89408.0,89407.0,0.00101447]
[1764968816131,0.60740649,89408.0,89407.0,0.00301447]
[1764968816721,0.60940649,89408.0,89407.0,0.00301447]
[1764968817343,0.60940649,89408.0,89407.0,0.00101447]
[1764968818768,0.59172649,89408.0,89407.0,0.00101447]
[1764968818974,0.58454649,89408.0,89407.0,0.00101447]
[1764968819175,0.6084528,89408.0,89407.0,0.00101447]
[1764968819428,0.58454649,89408.0,89407.0,0.00101447]
[1764968819582,0.60940649,89408.0,89407.0,0.00101447]
[1764968819760,0.58454649,89408.0,89407.0,0.00101447]
[1764968820163,0.59190708,89408.0,89407.0,0.00101447]
[1764968822102,0.58454649,89408.0,89407.0,0.00101447]
[1764968822627,0.60823649,89408.0,89407.0,0.00101447]
[1764968823405,0.56798649,89408.0,89407.0,0.00101447]
[1764968823817,0.62057078,89408.0,89407.0,0.00101447]
[1764968824011,0.60797649,89408.0,89407.0,0.00101447]
[1764968825230,0.01118893,89374.0,89364.0,0.00524]
[1764968825403,0.23499132,89365.0,89364.0,0.00524]
[1764968826991,0.22385022,89346.0,89344.0,0.00524]
[1764968827188,0.01119269,89344.0,89341.0,0.02802628]
[1764968827367,0.01119269,89344.0,89342.0,0.00524]
[1764968827597,0.22384913,89349.0,89344.0,0.06252299]
[1764968827598,0.23504119,89349.0,89344.0,0.06252299]
[1764968827746,0.01119156,89353.0,89349.0,0.06252299]
[1764968827927,0.01119169,89352.0,89348.0,0.01119219]
[1764968828135,0.01119169,89352.0,89350.0,0.06252299]
[1764968828334,0.01119169,89352.0,89351.0,0.06776299]
[1764968828600,0.01119169,89352.0,89351.0,0.07300299]
[1764968829357,0.23502174,89354.0,89352.0,0.06252299]
[1764968829570,0.01119068,89360.0,89355.0,0.0737143]
[1764968829768,0.01119043,89362.0,89360.0,0.06252299]
[1764968829973,0.22380745,89363.0,89362.0,0.06252299]
[1764968830301,0.22380745,89363.0,89362.0,0.06776299]
[1764968831126,0.22380745,89363.0,89362.0,0.07300299]
[1764968831453,0.22380745,89363.0,89362.0,0.07436531]
[1764968832609,0.22380745,89363.0,89362.0,0.07536531]
[1764968833047,0.22380745,89363.0,89362.0,0.07836531]
[1764968833598,0.23499402,89364.0,89362.0,0.07836531]
[1764968833794,0.01143,89385.0,89367.0,0.06252299]
[1764968834000,0.2237638,89380.0,89379.0,0.06252299]
[1764968834418,0.2237638,89380.0,89379.0,0.06776299]
[1764968834419,0.2237637,89380.0,89379.0,0.06776299]
[1764968835321,0.2237637,89380.0,89379.0,0.07300299]
[1764968835721,0.01118906,89373.0,89370.0,0.06252299]
[1764968835946,0.01118856,89377.0,89374.0,0.06252299]
[1764968836168,0.22377379,89376.0,89374.0,0.06252299]
[1764968836393,0.23496216,89377.0,89376.0,0.06776299]
[1764968836595,0.01118856,89377.0,89376.0,0.06776299]
[1764968836883,0.22376907,89378.0,89377.0,0.06252299]
[1764968837086,0.22376871,89378.0,89377.0,0.06776299]
[1764968837236,0.22376871,89378.0,89377.0,0.06788163]
[1764968838866,0.2349555,89379.0,89377.0,0.06788163]
[1764968838867,0.01118831,89379.0,89377.0,0.06788163]
[1764968839067,0.23494514,89383.0,89380.0,0.28628658]
[1764968839268,0.22375855,89384.0,89382.0,0.06252299]
[1764968839269,0.23494623,89384.0,89382.0,0.06252299]
[1764968839585,0.22376602,89380.0,89378.0,0.06252299]
[1764968839781,0.2237662,89379.0,89378.0,0.06252299]
[1764968839991,0.22376871,89378.0,89377.0,0.00011864]
[1764968840400,0.22376871,89378.0,89377.0,0.06788163]
[1764968841601,0.22376855,89379.0,89378.0,0.06252299]
[1764968841773,0.23495159,89381.0,89378.0,0.06252299]
[1764968841774,0.23494926,89381.0,89380.0,0.06252299]
[1764968842011,0.23494926,89381.0,89380.0,0.06776299]
[1764968843162,0.23494926,89381.0,89380.0,0.07076299]
[1764968843565,0.23494926,89381.0,89380.0,0.07176299]
[1764968844522,0.23494926,89381.0,89380.0,0.06652299]
[1764968844875,0.23494926,89381.0,89380.0,0.06734022]
[1764968849957,0.23494926,89381.0,89380.0,0.07258022]
[1764968850368,0.23494926,89381.0,89380.0,0.06734022]
[1764968852513,0.23494926,89381.0,89380.0,0.01005723]
[1764968852514,0.23656213,89381.0,89380.0,0.01005723]
[1764968852901,0.23656213,89381.0,89380.0,0.07258022]
[1764968854615,0.23494926,89381.0,89380.0,0.07782022]
[1764968856943,0.01118806,89381.0,89380.0,0.07782022]
[1764968857323,0.23494926,89381.0,89380.0,0.07782022]
[1764968857520,0.01118806,89381.0,89380.0,0.07782022]
[1764968857768,0.23494926,89381.0,89380.0,0.07782022]
[1764968862696,0.01118806,89381.0,89380.0,0.07782022]
[1764968863653,0.23494926,89381.0,89380.0,0.07782022]
[1764968864272,0.2237492,89386.0,89380.0,0.07782022]
[1764968864273,0.01118468,89408.0,89403.0,0.0111853]
[1764968864481,0.01162,89418.0,89408.0,0.07370767]
[1764968864482,0.23486811,89412.0,89408.0,0.07370767]
[1764968864703,0.22366827,89419.0,89414.0,0.28620135]
[1764968864910,0.01118268,89424.0,89418.0,0.01642343]
[1764968865116,0.01219692,89425.0,89422.0,0.06252299]
[1764968865318,0.01118305,89421.0,89418.0,0.07370642]
[1764968865471,0.23484128,89423.0,89420.0,0.06252299]
[1764968865675,0.2236636,89420.0,89419.0,0.06252299]
[1764968865875,0.22366611,89419.0,89418.0,0.06252299]
[1764968866076,0.0111833,89419.0,89416.0,0.06252299]
[1764968866255,0.2236636,89420.0,89419.0,0.06252299]
[1764968866462,0.01118293,89422.0,89419.0,0.06776299]
[1764968866670,0.2236536,89424.0,89423.0,0.06252299]
[1764968866868,0.2236536,89424.0,89423.0,0.06776299]
[1764968867094,0.2186536,89424.0,89423.0,0.06776299]
[1764968868266,0.2186536,89424.0,89423.0,0.07300299]
[1764968868607,0.2186536,89424.0,89423.0,0.07400299]
[1764968869053,0.23584921,89425.0,89423.0,0.07400299]
[1764968869305,0.23584921,89425.0,89424.0,0.07300299]
[1764968869636,0.23584921,89425.0,89424.0,0.06776299]
[1764968870673,0.23584921,89425.0,89424.0,0.07176299]
[1764968871413,0.23584921,89425.0,89424.0,0.07700299]
[1764968871944,0.00101437,89425.0,89424.0,0.07700299]
[1764968872512,0.00101437,89425.0,89424.0,0.07800299]
[1764968873108,0.22466547,89425.0,89424.0,0.07800299]
[1764968873321,0.22466547,89425.0,89424.0,0.07276299]
[1764968874563,0.00101437,89425.0,89424.0,0.07276299]
[1764968874767,0.00101437,89425.0,89424.0,0.07800299]
[1764968875440,0.00101437,89425.0,89424.0,0.30165659]
[1764968881748,0.00101437,89425.0,89424.0,0.45045659]
[1764968882681,0.00101437,89425.0,89424.0,0.44545659]
[1764968882914,0.00101437,89425.0,89424.0,0.29665659]
[1764968883120,0.00101437,89425.0,89424.0,0.61965659]
[1764968883945,0.00101437,89425.0,89424.0,0.62065659]
[1764968884188,0.00101437,89425.0,89424.0,0.62465659]
[1764968884604,0.00101437,89425.0,89424.0,0.62365659]
[1764968884780,0.00101437,89425.0,89424.0,0.62465659]
[1764968885365,0.00101437,89425.0,89424.0,0.62065659]
[1764968885779,0.00101437,89425.0,89424.0,0.65822338]
[1764968886004,0.23476218,89453.0,89450.0,0.06252299]
[1764968886206,0.23485512,89453.0,89452.0,0.07300299]
[1764968887447,0.23485512,89453.0,89452.0,0.07500299]
[1764968890352,9.294e-05,89453.0,89452.0,0.07500299]
[1764968890981,0.22367403,89453.0,89452.0,0.07500299]
[1764968891827,9.294e-05,89453.0,89452.0,0.07500299]
[1764968892251,0.00093958,89453.0,89452.0,0.29858658]
[1764968892634,0.00093958,89453.0,89452.0,0.07500299]
[1764968893003,0.00093958,89453.0,89452.0,0.30382658]
[1764968893207,0.00093958,89453.0,89452.0,0.08024299]
[1764968893411,0.00093958,89453.0,89452.0,0.30382658]
[1764968896516,0.00093958,89453.0,89452.0,0.45262658]
[1764968896713,0.00093958,89453.0,89452.0,0.45062658]
[1764968896989,0.00093958,89453.0,89452.0,0.45862658]
[1764968897188,0.00093958,89453.0,89452.0,0.47630658]
[1764968898358,0.00093958,89453.0,89452.0,0.47030658]
[1764968898634,0.00093958,89453.0,89452.0,0.47530658]
[1764968899197,0.00093958,89453.0,89452.0,0.47330658]
[1764968899404,0.00093958,89453.0,89452.0,0.47430658]
[1764968902470,0.00093958,89453.0,89452.0,0.45662658]
[1764968902907,0.00093958,89453.0,89452.0,0.47430658]
[1764968911208,0.22452067,89453.0,89452.0,0.23304299]
[1764968911405,0.00093958,89453.0,89452.0,0.23304299]
[1764968911724,0.00093958,89453.0,89452.0,0.16004]
[1764968912050,0.27777354,89453.0,89452.0,0.005]
[1764968912456,0.27777354,89453.0,89452.0,0.006]
[1764968912885,0.27777354,89453.0,89452.0,0.001]
[1764968913081,0.22361609,89439.0,89438.0,0.00524]
[1764968913923,0.22361609,89439.0,89438.0,0.07300299]
[1764968915126,0.22361609,89439.0,89438.0,0.07076299]
[1764968915335,0.22361609,89439.0,89438.0,0.07176299]
[1764968916846,0.22361609,89439.0,89438.0,0.07700299]
[1764968918471,0.22403947,89439.0,89438.0,0.07700299]
[1764968919052,0.22403947,89439.0,89438.0,0.08224299]
[1764968919053,0.00042338,89439.0,89438.0,0.08224299]
[1764968919459,0.00042338,89439.0,89438.0,0.07700299]
[1764968920068,0.22403947,89439.0,89438.0,0.07700299]
[1764968920657,0.22403947,89439.0,89438.0,0.07730299]
[1764968922234,0.22403947,89439.0,89438.0,0.07206299]
[1764968923797,0.22403947,89439.0,89438.0,0.07730299]
[1764968924201,0.22403947,89439.0,89438.0,0.06682299]
[1764968924953,0.22403947,89439.0,89438.0,0.06582299]
[1764968925153,0.22403947,89439.0,89438.0,0.06282299]
[1764968925365,0.22403947,89439.0,89438.0,0.06382299]
[1764968925616,0.22403947,89439.0,89438.0,0.06682299]
[1764968925935,0.22403947,89439.0,89438.0,0.06582299]
[1764968927335,0.22403947,89439.0,89438.0,0.0033]
[1764968927336,0.26308947,89439.0,89438.0,0.0033]
[1764968928478,0.26308947,89439.0,89438.0,0.0003]
[1764968928699,0.26308947,89439.0,89438.0,0.0033]
[1764968928952,0.26308947,89439.0,89438.0,0.0003]
[1764968929361,0.26508947,89439.0,89438.0,0.0003]
[1764968930000,0.2236461,89427.0,89426.0,0.06252299]
[1764968931376,0.01118293,89422.0,89420.0,0.06252299]
[1764968931579,0.2236611,89421.0,89420.0,0.06252299]
[1764968932721,0.26384841,89421.0,89420.0,0.003]
[1764968933173,0.26384841,89421.0,89407.0,0.00101448]
[1764968933174,0.22369362,89408.0,89407.0,0.06353747]
[1764968933377,0.22368842,89411.0,89407.0,0.23589302]
[1764968933580,0.01118443,89410.0,89407.0,0.01743928]
[1764968933906,0.23487272,89411.0,89408.0,0.28621661]
[1764968934106,0.23487272,89411.0,89410.0,0.06252299]
[1764968934440,0.22369362,89408.0,89407.0,0.06353747]
[1764968934644,0.22369169,89409.0,89408.0,0.06252299]
[1764968935034,0.22369169,89409.0,89408.0,0.06552299]
[1764968935237,0.22369169,89409.0,89408.0,0.06252299]
[1764968936307,0.22369112,89409.0,89408.0,0.06652299]
[1764968936507,0.23487361,89410.0,89408.0,0.06652299]
[1764968936662,0.22369112,89409.0,89408.0,0.06652299]
[1764968937358,0.23487361,89410.0,89408.0,0.06652299]
[1764968938137,0.23487361,89410.0,89408.0,0.06552299]
[1764968938385,0.23487361,89410.0,89408.0,0.06652299]
[1764968938677,0.22369112,89409.0,89408.0,0.06352299]
[1764968938883,0.22369112,89409.0,89408.0,0.06652299]
[1764968939451,0.22369112,89409.0,89408.0,0.06552299]
[1764968940010,0.22369112,89409.0,89408.0,0.06652299]
[1764968940421,0.24021112,89409.0,89408.0,0.06652299]
[1764968940630,0.26539399,89409.0,89408.0,0.004]
[1764968940830,0.28307399,89409.0,89408.0,0.004]
[1764968941440,0.28307399,89409.0,89408.0,0.003]
[1764968941662,0.28307399,89409.0,89407.0,0.00101448]
[1764968941663,0.54669362,89408.0,89407.0,0.00101448]
[1764968941861,0.58839649,89408.0,89407.0,0.00101448]
[1764968942836,0.59039649,89408.0,89407.0,0.00101448]
[1764968944102,0.58839649,89408.0,89407.0,0.00101448]
[1764968944513,0.59039649,89408.0,89407.0,0.00101448]
[1764968945097,0.65882549,89408.0,89407.0,0.00101448]
[1764968945643,0.59039649,89408.0,89407.0,0.00101448]
[1764968945847,0.01119018,89364.0,89361.0,0.02207322]
[1764968946062,0.22380662,89363.0,89362.0,0.06252299]
[1764968946227,0.01119018,89364.0,89362.0,0.06252299]
[1764968946422,0.22380334,89365.0,89364.0,0.06252299]
[1764968946423,0.22380208,89365.0,89364.0,0.06252299]
[1764968946590,0.23498869,89366.0,89364.0,0.06252299]
[1764968946993,0.22380627,89363.0,89362.0,0.06252299]
[1764968947237,0.22380627,89363.0,89362.0,0.06291927]
[1764968948045,0.22380627,89363.0,89362.0,0.06815927]
[1764968948230,0.22380627,89363.0,89362.0,0.06291927]
[1764968948717,0.22380627,89363.0,89362.0,0.06391927]
[1764968948955,0.23933627,89363.0,89362.0,0.06391927]
[1764968949158,0.26366627,89363.0,89362.0,0.06391927]
[1764968949361,0.26366627,89363.0,89362.0,0.00139628]
[1764968949761,0.26366627,89363.0,89362.0,0.00039628]
[1764968950519,0.22380627,89363.0,89362.0,0.00039628]
[1764968950726,0.22380627,89363.0,89362.0,0.06815927]
[1764968951137,0.2349968,89364.0,89363.0,0.06252299]
[1764968951344,0.23498083,89369.0,89363.0,0.09538361]
[1764968951561,0.22379637,89367.0,89364.0,0.06252299]
[1764968951756,0.23498083,89369.0,89368.0,0.06776299]
[1764968952395,0.01118931,89371.0,89368.0,0.06776299]
[1764968952606,0.01118881,89375.0,89372.0,0.01118918]
[1764968952978,0.01118881,89375.0,89373.0,0.28630405]
[1764968953156,0.22377242,89377.0,89374.0,0.01118893]
[1764968953408,0.01118843,89378.0,89376.0,0.06252299]
[1764968953607,0.23495747,89378.0,89376.0,0.06776299]
[1764968954567,0.23535068,89386.0,89371.0,0.23497453]
[1764968954568,0.01118768,89384.0,89380.0,0.07371117]
[1764968954774,0.01118768,89384.0,89380.0,0.06252299]
[1764968954775,0.2237591,89382.0,89380.0,0.06252299]
[1764968954977,0.23494703,89382.0,89379.0,0.06252299]
[1764968955218,0.23494703,89382.0,89381.0,0.06776299]
[1764968956060,0.23694703,89382.0,89381.0,0.06776299]
[1764968957615,0.01118793,89382.0,89381.0,0.06776299]
[1764968957829,0.23494662,89382.0,89381.0,0.06776299]
[1764968958131,0.23694662,89382.0,89381.0,0.06252299]
[1764968959042,0.002,89382.0,89381.0,0.06252299]
[1764968959455,0.22575869,89382.0,89381.0,0.06252299]
[1764968963189,0.22575869,89382.0,89381.0,0.06330993]
[1764968966824,0.002,89382.0,89381.0,0.06854993]
[1764968967387,0.22575869,89382.0,89381.0,0.06854993]
[1764968968207,0.22375869,89382.0,89381.0,0.06854993]
[1764968968438,0.2349445,89383.0,89382.0,0.06252299]
[1764968968841,0.2349445,89383.0,89381.0,0.06252299]
[1764968969083,0.22375869,89382.0,89381.0,0.06252299]
[1764968969433,0.22375869,89382.0,89380.0,0.23494954]
[1764968969434,0.2237612,89381.0,89380.0,0.06252299]
[1764968969925,0.22376261,89381.0,89378.0,0.07371142]
[1764968970119,0.23494648,89383.0,89380.0,0.01642818]
[1764968970418,0.0111873,89387.0,89385.0,0.28627373]
[1764968970591,0.23493133,89388.0,89387.0,0.06252299]
[1764968970792,0.23493133,89388.0,89387.0,0.06776299]
[1764968972511,0.23493133,89388.0,89387.0,0.06876299]
[1764968973077,0.01118543,89402.0,89398.0,0.06252299]
[1764968973284,0.23489463,89402.0,89401.0,0.06776299]
[1764968973513,0.22369112,89410.0,89404.0,0.06252299]
[1764968973514,0.01118468,89408.0,89404.0,0.06252299]
[1764968973719,0.01166,89421.0,89400.0,0.01683322]
[1764968973720,0.01118405,89413.0,89410.0,0.29739593]
[1764968973931,0.22366753,89419.0,89416.0,0.06252299]
[1764968974154,0.0111833,89419.0,89416.0,0.06252299]
[1764968974391,0.22367111,89417.0,89415.0,0.06252299]
[1764968974589,0.22367922,89414.0,89413.0,0.06252299]
[1764968974795,0.0111838,89415.0,89411.0,0.06252299]
[1764968975036,0.2348601,89415.0,89413.0,0.06252299]
[1764968975242,0.22368905,89412.0,89410.0,0.06252299]
[1764968975441,0.22368905,89412.0,89407.0,0.06252299]
[1764968975442,0.22369122,89409.0,89407.0,0.06252299]
[1764968975825,0.2237055,89404.0,89402.0,0.06252299]
[1764968976200,0.01118518,89404.0,89401.0,0.06252299]
[1764968976597,0.22370641,89403.0,89401.0,0.06252299]
[1764968977226,0.22370641,89403.0,89402.0,0.004]
[1764968977655,0.22370641,89403.0,89401.0,0.06252299]
[1764968977828,0.22370641,89403.0,89401.0,0.06652299]
[1764968978028,0.01118405,89413.0,89406.0,0.06252299]
[1764968978228,0.01166,89433.0,89410.0,0.06252299]
[1764968978229,0.0111838,89415.0,89410.0,0.06252299]
[1764968978582,0.0111838,89415.0,89409.0,0.01118455]
[1764968978583,0.23485596,89417.0,89415.0,0.06252299]
[1764968978755,0.22367611,89415.0,89414.0,0.01683322]
[1764968978922,0.23485596,89417.0,89415.0,0.06252299]
[1764968979332,0.22367611,89415.0,89414.0,0.01683322]
[1764968980911,0.22367611,89415.0,89414.0,0.01983322]
[1764968981108,0.23485596,89417.0,89415.0,0.06252299]
[1764968981308,0.22366915,89418.0,89417.0,0.06252299]
[1764968981461,0.22367273,89417.0,89415.0,0.06252299]
[1764968981669,0.22367541,89416.0,89415.0,0.06252299]
[1764968981866,0.22367611,89415.0,89414.0,0.08235621]
[1764968982069,0.22367541,89416.0,89415.0,0.06252299]
[1764968982900,0.22367611,89415.0,89414.0,0.01683322]
[1764968984544,0.22367611,89415.0,89414.0,0.01983322]
[1764968985959,0.01118343,89418.0,89416.0,0.06252299]
[1764968986158,0.23485249,89418.0,89416.0,0.06252299]
[1764968986521,0.23485249,89418.0,89416.0,0.2861963]
[1764968986737,0.23485249,89418.0,89416.0,0.06252299]
[1764968987506,0.23485249,89418.0,89416.0,0.06452299]
[1764968988782,0.01118343,89418.0,89416.0,0.28819524]
[1764968988976,0.23484979,89419.0,89416.0,0.29938006]
[1764968989285,0.0111833,89419.0,89418.0,0.06252299]
[1764968989508,0.23484941,89419.0,89417.0,0.06252299]
[1764968989654,0.22366861,89418.0,89417.0,0.06252299]
[1764968989865,0.22367147,89417.0,89416.0,0.06252299]
[1764968990238,0.22367147,89417.0,89416.0,0.06452299]
[1764968990443,0.22367147,89417.0,89416.0,0.06252299]
[1764968991189,0.23485204,89418.0,89416.0,0.06252299]
[1764968992493,0.23485204,89418.0,89416.0,0.06452299]
[1764968992893,0.22367111,89417.0,89416.0,0.06252299]
[1764968993102,0.22367111,89417.0,89416.0,0.06452299]
[1764968994050,0.23485204,89418.0,89416.0,0.06452299]
[1764968994051,0.23485204,89418.0,89416.0,0.06252299]
[1764968994262,0.23485204,89418.0,89416.0,0.06464163]
[1764968995518,0.22367111,89417.0,89416.0,0.06464163]
[1764968995722,0.27501111,89417.0,89416.0,0.06464163]
[1764968995941,0.27501111,89417.0,89416.0,0.06264163]
[1764968996336,0.27501111,89417.0,89416.0,0.06464163]
[1764968996535,0.27501111,89417.0,89416.0,0.06264163]
[1764968996999,0.27501111,89417.0,89416.0,0.06464163]
[1764968997310,0.23553111,89417.0,89416.0,0.06464163]
[1764968997474,0.22367111,89417.0,89416.0,0.06464163]
[1764968998949,0.23553111,89417.0,89416.0,0.06464163]
[1764969001021,0.25096111,89417.0,89416.0,0.06464163]
[1764969001199,0.27662398,89417.0,89416.0,0.06464163]
[1764969004654,0.27662398,89417.0,89416.0,0.00011864]
[1764969006203,0.27662398,89417.0,89416.0,0.00111864]
[1764969006404,0.27662398,89417.0,89416.0,0.00011864]
[1764969006612,0.27762398,89417.0,89416.0,0.00011864]
[1764969009965,0.25357398,89417.0,89416.0,0.00011864]
[1764969010172,0.23814398,89417.0,89416.0,0.00011864]
[1764969011528,0.23714398,89417.0,89416.0,0.00011864]
[1764969012506,0.25250398,89417.0,89416.0,0.06464163]
[1764969012677,0.23714398,89417.0,89416.0,0.06464163]
[1764969014784,0.25250398,89417.0,89416.0,0.06464163]
[1764969015362,0.27606398,89417.0,89416.0,0.06464163]
[1764969015789,0.25250398,89417.0,89416.0,0.06464163]
[1764969016238,0.27606398,89417.0,89416.0,0.06464163]
[1764969022339,0.25250398,89417.0,89416.0,0.06464163]
[1764969023721,0.23714398,89417.0,89416.0,0.06464163]
[1764969024975,0.25250398,89417.0,89416.0,0.06464163]
[1764969025179,0.27606398,89417.0,89416.0,0.06464163]
[1764969029206,0.27606398,89417.0,89416.0,0.06264163]
[1764969030064,0.23714398,89417.0,89416.0,0.06264163]
[1764969030627,0.23714398,89417.0,89416.0,0.06364163]
[1764969031161,0.23714398,89417.0,89416.0,0.06264163]
[1764969031369,0.23714398,89417.0,89416.0,0.06464163]
[1764969031985,0.27606398,89417.0,89416.0,0.06464163]
[1764969045502,0.27606398,89417.0,89416.0,0.00211864]
[1764969055054,0.23714398,89417.0,89416.0,0.00211864]
[1764969055263,0.00161287,89417.0,89416.0,0.06464163]
[1764969055476,0.01166,89433.0,89431.0,0.06252299]
[1764969055680,0.00131675,89435.0,89433.0,0.06252299]
[1764969056360,0.00131675,89435.0,89434.0,0.29139158]
[1764969058106,0.00131675,89435.0,89434.0,0.3134648]
[1764969058305,0.00131675,89435.0,89434.0,0.3082248]
[1764969058529,0.00131675,89435.0,89434.0,0.3112248]
[1764969059310,0.00131675,89435.0,89434.0,0.3059848]
[1764969061745,0.00131675,89435.0,89434.0,0.3112248]
[1764969064034,0.00131675,89435.0,89434.0,0.3059848]
[1764969066317,0.00131675,89435.0,89434.0,0.4547848]
[1764969069959,0.00131675,89435.0,89434.0,0.4600248]
[1764969073261,0.27679284,89435.0,89434.0,0.21432299]
[1764969073481,0.27840571,89435.0,89434.0,0.003]
[1764969074033,0.22367111,89417.0,89405.0,0.00524]
[1764969074236,0.25305398,89417.0,89400.0,0.01683322]
[1764969074547,0.27713398,89417.0,89400.0,0.01683322]
[1764969075383,0.27713398,89417.0,89416.0,0.00311864]
[1764969075697,0.27713398,89417.0,89416.0,0.00011864]
[1764969076990,0.27913398,89417.0,89416.0,0.00011864]
[1764969077590,0.27713398,89417.0,89416.0,0.00011864]
[1764969078013,0.27913398,89417.0,89416.0,0.00011864]
[1764969078609,0.28213398,89417.0,89416.0,0.00011864]
[1764969090643,0.60513398,89417.0,89416.0,0.00011864]
[1764969093917,0.70802455,89417.0,89416.0,0.00011864]
[1764969094473,0.60513398,89417.0,89416.0,0.00011864]
[1764969095087,0.60013398,89417.0,89416.0,0.00011864]
[1764969095309,0.60613398,89417.0,89416.0,0.00011864]
[1764969099976,0.60613398,89417.0,89399.0,0.00024208]
[1764969099977,0.22371364,89400.0,89399.0,0.00024208]
[1764969100158,0.68434441,89400.0,89399.0,0.00024208]
[1764969100329,0.22380621,89364.0,89362.0,0.01683322]
[1764969100514,0.22380627,89363.0,89362.0,0.07935621]
[1764969100969,0.22380627,89363.0,89362.0,0.01683322]
[1764969101589,0.24023627,89363.0,89362.0,0.02183322]
[1764969101797,0.24023627,89363.0,89362.0,0.01683322]
[1764969102009,0.24023627,89363.0,89355.0,0.01683322]
[1764969102010,0.23501499,89356.0,89355.0,0.01683322]
[1764969102364,0.22384635,89347.0,89346.0,0.00524]
[1764969102575,0.01119181,89351.0,89349.0,0.06252299]
[1764969102780,0.23502931,89351.0,89349.0,0.06252299]
[1764969102979,0.22384299,89349.0,89346.0,0.24028122]
[1764969103407,0.01119169,89352.0,89346.0,0.01643244]
[1764969103611,0.01119181,89351.0,89348.0,0.01119219]
[1764969104010,0.23503045,89351.0,89349.0,0.06252299]
[1764969104242,0.23502624,89352.0,89349.0,0.28636315]
[1764969104419,0.23502624,89352.0,89349.0,0.06252299]
[1764969104624,0.22383859,89351.0,89349.0,0.06252299]
[1764969104836,0.22384108,89350.0,89348.0,0.06252299]
[1764969105145,0.0118,89354.0,89350.0,0.06252299]
[1764969105146,0.02299144,89354.0,89350.0,0.06252299]